fUSD/lending_fUSD_20250213
["ID","MTS","AMOUNT","RATE_DAILY","PERIOD"]
[353007541,1739485879241,-543.67,0.00013945,2]
[353007542,1739485879250,-823.62,0.00013945,2]
[353007543,1739485879260,-653.16,0.00013945,2]
[353007544,1739485879269,-500.0,0.00013945,2]
[353007545,1739485879279,-500.0,0.00013945,2]
[353007546,1739485879288,-500.0,0.00013945,2]
[353007547,1739485879298,-1041.6,0.00013945,2]
[353007548,1739485879307,-638.54,0.00013945,2]
[353007549,1739485879316,-500.0,0.00013945,2]
[353007550,1739485879326,-2539.19,0.00013945,2]
[353007551,1739485879336,-500.0,0.00013945,2]
[353007552,1739485879345,-500.0,0.00013945,2]
[353007553,1739485879355,-3052.42,0.00013945,2]
[353007554,1739485879364,-514.61,0.00013945,2]
[353007555,1739485879373,-500.0,0.00013945,2]
[353007556,1739485879383,-1525.33,0.00013945,2]
[353007557,1739485879392,-867.43,0.00013945,2]
[353007558,1739485879402,-500.0,0.00013945,2]
[353007559,1739485879411,-500.0,0.00013945,2]
[353007560,1739485879421,-500.0,0.00013945,2]
[353007561,1739485879430,-500.0,0.00013945,2]
[353007562,1739485879440,-500.0,0.00013945,2]
[353007563,1739485879450,-500.0,0.00013945,2]
[353007564,1739485879460,-500.0,0.00013945,2]
[353007565,1739485879469,-1400.14,0.00013945,2]
[353007566,1739485879478,-500.0,0.00013945,2]
[353007567,1739485879488,-500.0,0.00013945,2]
[353007568,1739485879498,-390.28284144,0.00013945,2]
[353007569,1739485879508,-917.77,0.00013945,2]
[353007570,1739485879518,-1241.27,0.00013945,2]
[353007571,1739485879528,-991.55,0.00013945,2]
[353007572,1739485879537,-500.0,0.00013945,2]
[353007573,1739485879547,-566.52,0.00013945,2]
[353007574,1739485879557,-500.0,0.00013945,2]
[353007575,1739485879566,-500.0,0.00013945,2]
[353007576,1739485879576,-500.0,0.00013945,2]
[353007577,1739485879586,-500.0,0.00013945,2]
[353007578,1739485879595,-500.0,0.00013945,2]
[353007579,1739485879605,-633.2,0.00013945,2]
[353007580,1739485879616,-717.52,0.00013945,2]
[353007581,1739485879625,-689.5,0.00013945,2]
[353007582,1739485879636,-580.16919119,0.00013945,2]
[353007583,1739485879646,-500.0,0.00013945,2]
[353007584,1739485879656,-965.58,0.00013945,2]
[353007585,1739485879666,-500.0,0.00013945,2]
[353007586,1739485879676,-756.27,0.00013945,2]
[353007587,1739485879686,-500.0,0.00013945,2]
[353007588,1739485879696,-687.68,0.00013945,2]
[353007589,1739485879705,-500.0,0.00013945,2]
[353007590,1739485879715,-320.61015835,0.00013945,2]
[353007591,1739485879724,-1669.58,0.00013945,2]
[353007592,1739485879734,-1501.09,0.00013945,2]
[353007593,1739485879743,-825.83,0.00013945,2]
[353007594,1739485879752,-1337.74,0.00013945,2]
[353007595,1739485879762,-500.0,0.00013945,2]
[353007596,1739485879772,-500.0,0.00013945,2]
[353007597,1739485879781,-1371.86,0.00013945,2]
[353007598,1739485879791,-500.0,0.00013945,2]
[353007599,1739485879801,-1702.26,0.00013945,2]
[353007600,1739485879810,-500.0,0.00013945,2]
[353007601,1739485879820,-1754.49,0.00013945,2]
[353007602,1739485879829,-500.0,0.00013945,2]
[353007603,1739485879839,-1078.61,0.00013945,2]
[353007604,1739485879848,-869.45,0.00013945,2]
[353007605,1739485879859,-500.0,0.00013945,2]
[353007606,1739485879870,-1158.07,0.00013945,2]
[353007607,1739485879879,-500.0,0.00013945,2]
[353007608,1739485879889,-500.0,0.00013945,2]
[353007609,1739485879900,-500.0,0.00013945,2]
[353007610,1739485879910,-991.47,0.00013945,2]
[353007611,1739485879919,-500.0,0.00013945,2]
[353007612,1739485879928,-1684.45,0.00013945,2]
[353007613,1739485879938,-526.8,0.00013945,2]
[353007614,1739485879947,-660.93,0.00013945,2]
[353007615,1739485879957,-1302.35,0.00013945,2]
[353007616,1739485879966,-500.0,0.00013945,2]
[353007617,1739485879976,-854.62,0.00013945,2]
[353007618,1739485879985,-2012.26,0.00013945,2]
[353007619,1739485879995,-504.56,0.00013945,2]
[353007620,1739485880004,-763.9,0.00013945,2]
[353007621,1739485880014,-696.46,0.00013945,2]
[353007622,1739485880027,-835.17,0.00013945,2]
[353007623,1739485880037,-692.97,0.00013945,2]
[353007624,1739485880046,-566.32,0.00013945,2]
[353007625,1739485880057,-857.95,0.00013945,2]
[353007626,1739485880067,-500.0,0.00013945,2]
[353007627,1739485880077,-2021.1,0.00013945,2]
[353007628,1739485880087,-702.16,0.00013945,2]
[353007629,1739485880099,-683.82,0.00013945,2]
[353007630,1739485880109,-1015.7,0.00013945,2]
[353007631,1739485880119,-500.0,0.00013945,2]
[353007632,1739485880128,-713.38,0.00013945,2]
[353007633,1739485880137,-500.0,0.00013945,2]
[353007634,1739485880146,-500.0,0.00013945,2]
[353007635,1739485880156,-1424.92,0.00013945,2]
[353007636,1739485880165,-500.0,0.00013945,2]
[353007637,1739485880175,-500.0,0.00013945,2]
[353007638,1739485880184,-500.0,0.00013945,2]
[353007639,1739485880194,-500.0,0.00013945,2]
[353007640,1739485880203,-811.86,0.00013945,2]
[353007641,1739485880212,-988.11,0.00013945,2]
[353007642,1739485880221,-500.0,0.00013945,2]
[353007643,1739485880231,-1906.79,0.00013945,2]
[353007644,1739485880240,-500.0,0.00013945,2]
[353007645,1739485880250,-1427.42,0.00013945,2]
[353007646,1739485880259,-524.63,0.00013945,2]
[353007647,1739485880269,-150.56194085,0.00013945,2]
[353007648,1739485880278,-500.0,0.00013945,2]
[353007649,1739485880287,-881.54,0.00013945,2]
[353007650,1739485880296,-500.0,0.00013945,2]
[353007651,1739485880306,-865.9,0.00013945,2]
[353007652,1739485880316,-500.0,0.00013945,2]
[353007653,1739485880326,-1372.61,0.00013945,2]
[353007654,1739485880337,-500.0,0.00013945,2]
[353007655,1739485880349,-500.0,0.00013945,2]
[353007656,1739485880359,-758.33,0.00013945,2]
[353007657,1739485880369,-500.0,0.00013945,2]
[353007658,1739485880378,-1840.97,0.00013945,2]
[353007659,1739485880387,-1636.34,0.00013945,2]
[353007660,1739485880396,-500.0,0.00013945,2]
[353007661,1739485880406,-1782.82,0.00013945,2]
[353007662,1739485880416,-1035.24,0.00013945,2]
[353007663,1739485880425,-557.25,0.00013945,2]
[353007664,1739485880434,-687.87,0.00013945,2]
[353007665,1739485880444,-888.74,0.00013945,2]
[353007666,1739485880454,-500.0,0.00013945,2]
[353007667,1739485880463,-1131.23,0.00013945,2]
[353007668,1739485880472,-976.11,0.00013945,2]
[353007669,1739485880483,-548.09,0.00013945,2]
[353007670,1739485880493,-1065.2,0.00013945,2]
[353007671,1739485880502,-500.0,0.00013945,2]
[353007672,1739485880512,-1519.15,0.00013945,2]
[353007673,1739485880522,-825.94,0.00013945,2]
[353007674,1739485880531,-717.12,0.00013945,2]
[353007675,1739485880540,-718.5,0.00013945,2]
[353007676,1739485880549,-500.0,0.00013945,2]
[353007677,1739485880559,-500.0,0.00013945,2]
[353007678,1739485880568,-500.0,0.00013945,2]
[353007679,1739485880578,-1464.62,0.00013945,2]
[353007680,1739485880587,-500.0,0.00013945,2]
[353007681,1739485880597,-1779.83,0.00013945,2]
[353007682,1739485880606,-551.0,0.00013945,2]
[353007683,1739485880617,-1813.74,0.00013945,2]
[353007684,1739485880627,-500.0,0.00013945,2]
[353007685,1739485880636,-558.37,0.00013945,2]
[353007686,1739485880646,-807.26,0.00013945,2]
[353007687,1739485880657,-500.0,0.00013945,2]
[353007688,1739485880667,-500.0,0.00013945,2]
[353007689,1739485880677,-1306.72,0.00013945,2]
[353007690,1739485880688,-1123.76,0.00013945,2]
[353007691,1739485880698,-500.0,0.00013945,2]
[353007692,1739485880707,-500.0,0.00013945,2]
[353007693,1739485880718,-844.9,0.00013945,2]
[353007694,1739485880728,-156.890312,0.00013945,2]
[353007695,1739485880738,-500.0,0.00013945,2]
[353007696,1739485880747,-2257.68,0.00013945,2]
[353007697,1739485880758,-831.33,0.00013945,2]
[353007698,1739485880770,-923.9,0.00013945,2]
[353007699,1739485880781,-500.0,0.00013945,2]
[353007700,1739485880791,-840.31,0.00013945,2]
[353007701,1739485880800,-500.0,0.00013945,2]
[353007702,1739485880810,-1270.71,0.00013945,2]
[353007703,1739485880820,-897.69,0.00013945,2]
[353007704,1739485880829,-853.17,0.00013945,2]
[353007705,1739485880838,-500.0,0.00013945,2]
[353007706,1739485880848,-500.0,0.00013945,2]
[353007707,1739485880858,-500.0,0.00013945,2]
[353007708,1739485880868,-1705.94,0.00013945,2]
[353007709,1739485880877,-500.0,0.00013945,2]
[353007710,1739485880887,-876.71,0.00013945,2]
[353007711,1739485880897,-885.91,0.00013945,2]
[353007712,1739485880906,-500.0,0.00013945,2]
[353007713,1739485880916,-2161.09,0.00013945,2]
[353007714,1739485880926,-500.0,0.00013945,2]
[353007715,1739485880935,-500.0,0.00013945,2]
[353007716,1739485880945,-1238.79,0.00013945,2]
[353007717,1739485880955,-3040.0,0.00013945,2]
[353007718,1739485880964,-1105.8,0.00013945,2]
[353007719,1739485880973,-2265.19,0.00013945,2]
[353007720,1739485880983,-1322.86,0.00013945,2]
[353007721,1739485880992,-500.0,0.00013945,2]
[353007722,1739485881002,-500.0,0.00013945,2]
[353007723,1739485881015,-646.18,0.00013945,2]
[353007724,1739485881025,-893.53,0.00013945,2]
[353007725,1739485881034,-906.34,0.00013945,2]
[353007726,1739485881044,-523.6,0.00013945,2]
[353007727,1739485881055,-500.0,0.00013945,2]
[353007728,1739485881064,-970.55,0.00013945,2]
[353007729,1739485881074,-702.31,0.00013945,2]
[353007730,1739485881083,-553.1,0.00013945,2]
[353007731,1739485881095,-2482.92,0.00013945,2]
[353007732,1739485881104,-500.0,0.00013945,2]
[353007733,1739485881114,-858.18,0.00013945,2]
[353007734,1739485881125,-669.76,0.00013945,2]
[353007735,1739485881135,-710.97,0.00013945,2]
[353007736,1739485881145,-1892.5,0.00013945,2]
[353007737,1739485881155,-739.26,0.00013945,2]
[353007738,1739485881164,-1559.26,0.00013945,2]
[353007739,1739485881174,-500.0,0.00013945,2]
[353007740,1739485881184,-1326.07,0.00013945,2]
[353007741,1739485881193,-602.38,0.00013945,2]
[353007742,1739485881203,-835.99,0.00013945,2]
[353007743,1739485881212,-1789.82,0.00013945,2]
[353007744,1739485881221,-500.0,0.00013945,2]
[353007745,1739485881231,-551.86,0.00013945,2]
[353007746,1739485881240,-1318.31,0.00013945,2]
[353007747,1739485881250,-500.0,0.00013945,2]
[353007748,1739485881261,-500.0,0.00013945,2]
[353007749,1739485881271,-864.67,0.00013945,2]
[353007750,1739485881282,-1994.16,0.00013945,2]
[353007751,1739485881292,-1141.82,0.00013945,2]
[353007752,1739485881303,-300.29001448,0.00013945,2]
[353007753,1739485881314,-812.11,0.00013945,2]
[353007754,1739485881323,-500.0,0.00013945,2]
[353007755,1739485881334,-500.0,0.00013945,2]
[353007756,1739485881344,-859.06,0.00013945,2]
[353007757,1739485881353,-1079.19,0.00013945,2]
[353007758,1739485881363,-1941.15,0.00013945,2]
[353007759,1739485881373,-2409.32,0.00013945,2]
[353007760,1739485881383,-592.63,0.00013945,2]
[353007761,1739485881392,-900.38,0.00013945,2]
[353007762,1739485881402,-1741.64,0.00013945,2]
[353007763,1739485881412,-1010.42,0.00013945,2]
[353007764,1739485881422,-156.890312,0.00013945,2]
[353007765,1739485881433,-730.65,0.00013945,2]
[353007766,1739485881443,-1201.88,0.00013945,2]
[353007767,1739485881454,-500.0,0.00013945,2]
[353007768,1739485881467,-645.62,0.00013945,2]
[353007769,1739485881477,-2964.55,0.00013945,2]
[353007770,1739485881486,-765.27,0.00013945,2]
[353007771,1739485881496,-1693.27,0.00013945,2]
[353007772,1739485881505,-1023.18,0.00013945,2]
[353007773,1739485881514,-1983.35,0.00013945,2]
[353007774,1739485881524,-1199.21,0.00013945,2]
[353007775,1739485881533,-1991.14,0.00013945,2]
[353007776,1739485881543,-533.09,0.00013945,2]
[353007777,1739485881552,-500.0,0.00013945,2]
[353007778,1739485881561,-2700.69,0.00013945,2]
[353007779,1739485881571,-4281.75,0.00013945,2]
[353007780,1739485881581,-1072.56,0.00013945,2]
[353007781,1739485881591,-2181.51,0.00013945,2]
[353007782,1739485881601,-2105.12,0.00013945,2]
[353007783,1739485881611,-500.0,0.00013945,2]
[353007784,1739485881622,-2362.29,0.00013945,2]
[353007785,1739485881632,-797.65,0.00013945,2]
[353007786,1739485881642,-1372.43,0.00013945,2]
[353007787,1739485881652,-500.0,0.00013945,2]
[353007788,1739485881662,-500.0,0.00013945,2]
[353007789,1739485881671,-2270.27,0.00013945,2]
[353007790,1739485881681,-500.0,0.00013945,2]
[353007791,1739485881691,-701.26,0.00013945,2]
[353007792,1739485881700,-1635.6,0.00013945,2]
[353007793,1739485881710,-1210.46,0.00013945,2]
[353007794,1739485881720,-1551.99,0.00013945,2]
[353007795,1739485881730,-2766.93,0.00013945,2]
[353007796,1739485881740,-4033.58,0.00013945,2]
[353007797,1739485881751,-2765.04,0.00013945,2]
[353007798,1739485881760,-660.75,0.00013945,2]
[353007799,1739485881770,-2103.7,0.00013945,2]
[353007800,1739485881780,-924.48,0.00013945,2]
[353007801,1739485881791,-794.33,0.00013945,2]
[353007802,1739485881802,-1374.92,0.00013945,2]
[353007803,1739485881812,-1140.21,0.00013945,2]
[353007804,1739485881822,-500.0,0.00013945,2]
[353007805,1739485881833,-1394.91,0.00013945,2]
[353007806,1739485881843,-2230.12,0.00013945,2]
[353007807,1739485881852,-500.0,0.00013945,2]
[353007808,1739485881862,-878.31,0.00013945,2]
[353007809,1739485881874,-1071.07,0.00013945,2]
[353007810,1739485881886,-3342.84,0.00013945,2]
[353007811,1739485881896,-683.58,0.00013945,2]
[353007812,1739485881907,-1308.38,0.00013945,2]
[353007813,1739485881918,-3531.08,0.00013945,2]
[353007814,1739485881928,-1653.81,0.00013945,2]
[353007815,1739485881938,-553.67,0.00013945,2]
[353007816,1739485881948,-988.77,0.00013945,2]
[353007817,1739485881958,-500.0,0.00013945,2]
[353007818,1739485881968,-2226.29,0.00013945,2]
[353007819,1739485881978,-969.77,0.00013945,2]
[353007820,1739485881988,-1807.21,0.00013945,2]
[353007821,1739485881998,-1796.12,0.00013945,2]
[353007822,1739485882008,-3314.33,0.00013945,2]
[353007823,1739485882020,-500.0,0.00013945,2]
[353007824,1739485882031,-3189.0,0.00013945,2]
[353007825,1739485882041,-803.11,0.00013945,2]
[353007826,1739485882051,-607.85,0.00013945,2]
[353007827,1739485882063,-761.91,0.00013945,2]
[353007828,1739485882073,-621.21,0.00013945,2]
[353007829,1739485882083,-1972.85,0.00013945,2]
[353007830,1739485882093,-523.93,0.00013945,2]
[353007831,1739485882104,-3990.94,0.00013945,2]
[353007832,1739485882115,-719.42,0.00013945,2]
[353007833,1739485882125,-749.77,0.00013945,2]
[353007834,1739485882134,-500.0,0.00013945,2]
[353007835,1739485882144,-1753.67,0.00013945,2]
[353007836,1739485882155,-2497.17,0.00013945,2]
[353007837,1739485882165,-3698.9,0.00013945,2]
[353007838,1739485882175,-1325.27,0.00013945,2]
[353007839,1739485882186,-500.0,0.00013945,2]
[353007840,1739485882196,-1628.89,0.00013945,2]
[353007841,1739485882207,-3120.71,0.00013945,2]
[353007842,1739485882217,-500.0,0.00013945,2]
[353007843,1739485882227,-3912.39,0.00013945,2]
[353007844,1739485882238,-511.69,0.00013945,2]
[353007845,1739485882248,-1203.12,0.00013945,2]
[353007846,1739485882257,-635.38,0.00013945,2]
[353007847,1739485882267,-500.0,0.00013945,2]
[353007848,1739485882278,-1174.26,0.00013945,2]
[353007849,1739485882289,-500.0,0.00013945,2]
[353007850,1739485882299,-5014.48,0.00013945,2]
[353007851,1739485882309,-500.0,0.00013945,2]
[353007852,1739485882319,-591.53,0.00013945,2]
[353007853,1739485882329,-2834.89,0.00013945,2]
[353007854,1739485882340,-1129.98,0.00013945,2]
[353007855,1739485882350,-4012.08,0.00013945,2]
[353007856,1739485882361,-1877.06,0.00013945,2]
[353007857,1739485882371,-2305.18,0.00013945,2]
[353007858,1739485882381,-3400.07,0.00013945,2]
[353007859,1739485882391,-10601.94,0.00013945,2]
[353007860,1739485882401,-1278.06,0.00013945,2]
[353007861,1739485882411,-2677.19,0.00013945,2]
[353007862,1739485882421,-2091.53,0.00013945,2]
[353007863,1739485882432,-1914.19,0.00013945,2]
[353007864,1739485882442,-500.0,0.00013945,2]
[353007865,1739485882452,-1244.36,0.00013945,2]
[353007866,1739485882462,-6319.86,0.00013945,2]
[353007867,1739485882473,-2222.28,0.00013945,2]
[353007868,1739485882483,-2434.73,0.00013945,2]
[353007869,1739485882493,-1301.75,0.00013945,2]
[353007870,1739485882503,-3378.69,0.00013945,2]
[353007871,1739485882514,-1073.98,0.00013945,2]
[353007872,1739485882524,-500.0,0.00013945,2]
[353007873,1739485882534,-1003.25,0.00013945,2]
[353007874,1739485882543,-500.0,0.00013945,2]
[353007875,1739485882554,-3213.97,0.00013945,2]
[353007876,1739485882564,-1894.84,0.00013945,2]
[353007877,1739485882574,-500.0,0.00013945,2]
[353007878,1739485882585,-1618.51,0.00013945,2]
[353007879,1739485882595,-3027.83,0.00013945,2]
[353007880,1739485882606,-1463.57,0.00013945,2]
[353007881,1739485882616,-551.57,0.00013945,2]
[353007882,1739485882626,-1866.04,0.00013945,2]
[353007883,1739485882636,-3405.09,0.00013945,2]
[353007884,1739485882647,-3794.0,0.00013945,2]
[353007885,1739485882657,-3558.25,0.00013945,2]
[353007886,1739485882667,-1199.38,0.00013945,2]
[353007887,1739485882676,-972.02,0.00013945,2]
[353007888,1739485882686,-5141.78,0.00013945,2]
[353007889,1739485882696,-5036.58,0.00013945,2]
[353007890,1739485882707,-500.0,0.00013945,2]
[353007891,1739485882916,-1457.37,0.00013945,2]
[353007892,1739485882926,-4943.34,0.00013945,2]
[353007893,1739485882936,-500.0,0.00013945,2]
[353007894,1739485882947,-1646.26,0.00013945,2]
[353007895,1739485882957,-1023.76,0.00013945,2]
[353007896,1739485882966,-973.76,0.00013945,2]
[353007897,1739485882975,-1078.92,0.00013945,2]
[353007898,1739485882983,-3488.7,0.00013945,2]
[353007899,1739485882993,-9947.08,0.00013945,2]
[353007900,1739485883003,-1167.35,0.00013945,2]
[353007901,1739485883014,-1925.44,0.00013945,2]
[353007902,1739485883024,-3871.01,0.00013945,2]
[353007903,1739485883034,-3374.31,0.00013945,2]
[353007904,1739485883044,-3262.34,0.00013945,2]
[353007905,1739485883053,-3751.7,0.00013945,2]
[353007906,1739485883065,-2216.47,0.00013945,2]
[353007907,1739485883075,-500.0,0.00013945,2]
[353007908,1739485883086,-500.0,0.00013945,2]
[353007909,1739485883096,-1272.94,0.00013945,2]
[353007910,1739485883106,-2198.57,0.00013945,2]
[353007911,1739485883115,-3047.23,0.00013945,2]
[353007912,1739485883125,-4282.13,0.00013945,2]
[353007913,1739485883135,-1579.29,0.00013945,2]
[353007914,1739485883145,-2262.09,0.00013945,2]
[353007915,1739485883155,-2034.1,0.00013945,2]
[353007916,1739485883165,-4796.16,0.00013945,2]
[353007917,1739485883175,-621.58,0.00013945,2]
[353007918,1739485883185,-4188.27,0.00013945,2]
[353007919,1739485883194,-5302.96,0.00013945,2]
[353007920,1739485883204,-2900.35,0.00013945,2]
[353007921,1739485883214,-500.0,0.00013945,2]
[353007922,1739485883224,-3352.12,0.00013945,2]
[353007923,1739485883233,-525.01,0.00013945,2]
[353007924,1739485883243,-2517.29,0.00013945,2]
[353007925,1739485883253,-3510.5,0.00013945,2]
[353007926,1739485883263,-503.34674859,0.00013945,2]
[353007927,1739485883273,-1911.76,0.00013945,2]
[353007928,1739485883282,-3186.25,0.00013945,2]
[353007929,1739485883293,-1411.53,0.00013945,2]
[353007930,1739485883303,-5245.34,0.00013945,2]
[353007931,1739485883313,-500.0,0.00013945,2]
[353007932,1739485883323,-4040.71,0.00013945,2]
[353007933,1739485883333,-2434.4,0.00013945,2]
[353007934,1739485883343,-797.43,0.00013945,2]
[353007935,1739485883352,-3997.95,0.00013945,2]
[353007936,1739485883362,-500.0,0.00013945,2]
[353007937,1739485883373,-3418.06,0.00013945,2]
[353007938,1739485883383,-3613.39,0.00013945,2]
[353007939,1739485883392,-566.64,0.00013945,2]
[353007940,1739485883402,-500.0,0.00013945,2]
[353007941,1739485883412,-8838.73,0.00013945,2]
[353007942,1739485883421,-624.99,0.00013945,2]
[353007943,1739485883431,-720.74,0.00013945,2]
[353007944,1739485883441,-3533.94,0.00013945,2]
[353007945,1739485883451,-3776.32,0.00013945,2]
[353007946,1739485883461,-522.13,0.00013945,2]
[353007947,1739485883470,-4171.69,0.00013945,2]
[353007948,1739485883480,-2767.11,0.00013945,2]
[353007949,1739485883490,-500.0,0.00013945,2]
[353007950,1739485883499,-1300.63,0.00013945,2]
[353007951,1739485883509,-3523.18,0.00013945,2]
[353007952,1739485883519,-4629.45,0.00013945,2]
[353007953,1739485883528,-2317.93,0.00013945,2]
[353007954,1739485883538,-542.74,0.00013945,2]
[353007955,1739485883547,-6501.79,0.00013945,2]
[353007956,1739485883557,-649.96,0.00013945,2]
[353007957,1739485883567,-2852.77,0.00013945,2]
[353007958,1739485883576,-4468.57,0.00013945,2]
[353007959,1739485883587,-773.78,0.00013945,2]
[353007960,1739485883596,-724.47,0.00013945,2]
[353007961,1739485883606,-2513.38,0.00013945,2]
[353007962,1739485883615,-4071.43,0.00013945,2]
[353007963,1739485883626,-3680.29,0.00013945,2]
[353007964,1739485883635,-3113.41,0.00013945,2]
[353007965,1739485883645,-500.0,0.00013945,2]
[353007966,1739485883655,-964.12,0.00013945,2]
[353007967,1739485883665,-500.0,0.00013945,2]
[353007968,1739485883675,-500.0,0.00013945,2]
[353007969,1739485883685,-500.0,0.00013945,2]
[353007970,1739485883694,-500.0,0.00013945,2]
[353007971,1739485883705,-1523.71,0.00013945,2]
[353007972,1739485883715,-525.45,0.00013945,2]
[353007973,1739485883725,-741.53,0.00013945,2]
[353007974,1739485883735,-2768.98,0.00013945,2]
[353007975,1739485883745,-1470.77,0.00013945,2]
[353007976,1739485883755,-3441.38,0.00013945,2]
[353007977,1739485883764,-4132.51,0.00013945,2]
[353007978,1739485883774,-1712.88,0.00013945,2]
[353007979,1739485883783,-500.0,0.00013945,2]
[353007980,1739485883793,-4938.55,0.00013945,2]
[353007981,1739485883803,-2124.68,0.00013945,2]
[353007982,1739485883812,-1789.26,0.00013945,2]
[353007983,1739485883822,-1226.02,0.00013945,2]
[353007984,1739485883832,-1451.96,0.00013945,2]
[353007985,1739485883842,-500.0,0.00013945,2]
[353007986,1739485883852,-500.0,0.00013945,2]
[353007987,1739485883861,-3558.23,0.00013945,2]
[353007988,1739485883871,-824.05,0.00013945,2]
[353007989,1739485883880,-880.79,0.00013945,2]
[353007990,1739485883891,-4167.53,0.00013945,2]
[353007991,1739485883902,-1936.97,0.00013945,2]
[353007992,1739485883912,-1838.56,0.00013945,2]
[353007993,1739485883923,-2962.2,0.00013945,2]
[353007994,1739485883932,-598.78,0.00013945,2]
[353007995,1739485883942,-500.0,0.00013945,2]
[353007996,1739485883953,-709.99,0.00013945,2]
[353007997,1739485883963,-4502.56,0.00013945,2]
[353007998,1739485883974,-299.0,0.0001397,2]
[353007999,1739485883984,-500.0,0.00013972,2]
[353008000,1739485883993,-1563.0,0.00013972,2]
[353008001,1739485884003,-299.52613011,0.00013973,2]
[353008002,1739485884013,-6041.74134071,0.00013992,2]
[353008003,1739485884027,-150.0,0.00013992,2]
[353008004,1739485884037,-30861.72105405,0.00013992,2]
[353008005,1739485884047,-1000.0,0.00013992,2]
[353008006,1739485884058,-1000.0,0.00013992,2]
[353008007,1739485884067,-1000.0,0.00013992,2]
[353008008,1739485884077,-1000.0,0.00013992,2]
[353008009,1739485884087,-1000.0,0.00013992,2]
[353008010,1739485884099,-1000.0,0.00013992,2]
[353008011,1739485884109,-1000.0,0.00013992,2]
[353008012,1739485884120,-1000.0,0.00013992,2]
[353008013,1739485884130,-1000.0,0.00013992,2]
[353008014,1739485884139,-1000.0,0.00013992,2]
[353008015,1739485884150,-1000.0,0.00013992,2]
[353008016,1739485884160,-1000.0,0.00013992,2]
[353008017,1739485884171,-1000.0,0.00013992,2]
[353008018,1739485884181,-1000.0,0.00013992,2]
[353008019,1739485884191,-1000.0,0.00013992,2]
[353008020,1739485884201,-1000.0,0.00013992,2]
[353008021,1739485884212,-1000.0,0.00013992,2]
[353008022,1739485884222,-1000.0,0.00013992,2]
[353008023,1739485884231,-1000.0,0.00013992,2]
[353008024,1739485884242,-1000.0,0.00013992,2]
[353008025,1739485884252,-377.61760858,0.00013994,2]
[353008026,1739485884262,-500.0,0.00013999,2]
[353008027,1739485884272,-1563.0,0.00013999,2]
[353008028,1739485884282,-4760.0,0.00014,2]
[353008029,1739485884291,-5000.0,0.00014,2]
[353008030,1739485884300,-1127.5732647,0.00014,4]
[353008031,1739485884311,-1000.0270152,0.00014,2]
[353008032,1739485884321,-2000.0,0.00014,2]
[353008033,1739485884331,-2000.0,0.00014,2]
[353008034,1739485884341,-5340.55894688,0.00014,2]
[353008035,1739485884352,-7646.1990782,0.00014018,2]
[353008036,1739485884364,-273.6375506,0.00014018,2]
[353008037,1739485884375,-2201.4105399,0.00014018,2]
[353008038,1739485884385,-2000.0,0.00014026,2]
[353008039,1739485884395,-500.0,0.00014027,2]
[353008040,1739485884405,-1563.0,0.00014027,2]